fUST/lending_fUST_20250208
["ID","MTS","AMOUNT","RATE_DAILY","PERIOD"]
[352186496,1738983040683,-500.0,0.00011095,2]
[352186497,1738983040693,-500.0,0.00011095,2]
[352186498,1738983040703,-500.0,0.00011095,2]
[352186499,1738983040713,-500.0,0.00011095,2]
[352186500,1738983040723,-607.60572806,0.00011095,2]
[352186501,1738983040732,-600.14,0.00011095,2]
[352186502,1738983040742,-504.02135416,0.00011095,2]
[352186503,1738983040752,-1017.12,0.00011095,2]
[352186504,1738983040761,-1154.79,0.00011095,2]
[352186505,1738983040771,-501.60629592,0.00011095,2]
[352186506,1738983040783,-500.0,0.00011095,2]
[352186507,1738983040792,-229.03071959,0.00011095,2]
[352186508,1738983040802,-506.72831434,0.00011095,2]
[352186509,1738983040812,-1066.97,0.00011095,2]
[352186510,1738983040821,-500.0,0.00011095,2]
[352186511,1738983040831,-2308.46,0.00011095,2]
[352186512,1738983040841,-151.833836,0.00011095,2]
[352186513,1738983040850,-315.07899447,0.00011095,2]
[352186514,1738983040860,-557.58,0.00011095,2]
[352186515,1738983040870,-503.6205113,0.00011095,2]
[352186516,1738983040879,-501.91276157,0.00011095,2]
[352186517,1738983040889,-505.7311447,0.00011095,2]
[352186518,1738983040898,-502.39882042,0.00011095,2]
[352186519,1738983040908,-500.0,0.00011095,2]
[352186520,1738983040918,-500.0,0.00011095,2]
[352186521,1738983040927,-504.30207246,0.00011095,2]
[352186522,1738983040937,-500.0,0.00011095,2]
[352186523,1738983040947,-1135.37,0.00011095,2]
[352186524,1738983040957,-500.0,0.00011095,2]
[352186525,1738983040967,-151.0,0.00011095,2]
[352186526,1738983040976,-500.0,0.00011095,2]
[352186527,1738983040986,-500.0,0.00011095,2]
[352186528,1738983040996,-249.84790382,0.00011095,2]
[352186529,1738983041006,-500.0,0.00011095,2]
[352186530,1738983041019,-1064.24,0.00011095,2]
[352186531,1738983041030,-502.04072163,0.00011095,2]
[352186532,1738983041040,-151.0,0.00011095,2]
[352186533,1738983041052,-888.92,0.00011095,2]
[352186534,1738983041062,-500.0,0.00011095,2]
[352186535,1738983041071,-500.0,0.00011095,2]
[352186536,1738983041081,-505.51429254,0.00011095,2]
[352186537,1738983041091,-3117.09,0.00011095,2]
[352186538,1738983041102,-500.0,0.00011095,2]
[352186539,1738983041112,-500.0,0.00011095,2]
[352186540,1738983041123,-508.29323094,0.00011095,2]
[352186541,1738983041133,-503.05790044,0.00011095,2]
[352186542,1738983041144,-500.0,0.00011095,2]
[352186543,1738983041159,-504.45069408,0.00011095,2]
[352186544,1738983041169,-382.42218587,0.00011095,2]
[352186545,1738983041179,-500.0,0.00011095,2]
[352186546,1738983041191,-9989.47,0.00011095,2]
[352186547,1738983041203,-500.0,0.00011095,2]
[352186548,1738983041213,-615.46264308,0.00011095,2]
[352186549,1738983041224,-500.0,0.00011095,2]
[352186550,1738983041236,-500.0,0.00011095,2]
[352186551,1738983041245,-500.0,0.00011095,2]
[352186552,1738983041255,-503.12197854,0.00011095,2]
[352186553,1738983041264,-500.0,0.00011095,2]
[352186554,1738983041274,-508.45,0.00011095,2]
[352186555,1738983041283,-506.71482403,0.00011095,2]
[352186556,1738983041293,-32719.96,0.00011095,2]
[352186557,1738983041303,-500.0,0.00011095,2]
[352186558,1738983041312,-500.0,0.00011095,2]
[352186559,1738983041322,-697.28,0.00011095,2]
[352186560,1738983041332,-503.40614959,0.00011095,2]
[352186561,1738983041341,-151.0,0.00011095,2]
[352186562,1738983041351,-505.29191511,0.00011095,2]
[352186563,1738983041361,-151.0,0.00011095,2]
[352186564,1738983041371,-503.5,0.00011095,2]
[352186565,1738983041380,-1243.94,0.00011095,2]
[352186566,1738983041390,-500.0,0.00011095,2]
[352186567,1738983041399,-500.0,0.00011095,2]
[352186568,1738983041409,-1604.42,0.00011095,2]
[352186569,1738983041418,-151.0,0.00011095,2]
[352186570,1738983041428,-504.5101064,0.00011095,2]
[352186571,1738983041438,-500.0,0.00011095,2]
[352186572,1738983041447,-500.0,0.00011095,2]
[352186573,1738983041457,-503.2706874,0.00011095,2]
[352186574,1738983041466,-500.0,0.00011095,2]
[352186575,1738983041476,-500.0,0.00011095,2]
[352186576,1738983041485,-500.0,0.00011095,2]
[352186577,1738983041495,-625.33361028,0.00011095,2]
[352186578,1738983041504,-212.695217,0.00011095,2]
[352186579,1738983041514,-1116.89,0.00011095,2]
[352186580,1738983041523,-503.02824521,0.00011095,2]
[352186581,1738983041532,-500.0,0.00011095,2]
[352186582,1738983041542,-762.92,0.00011095,2]
[352186583,1738983041551,-500.0,0.00011095,2]
[352186584,1738983041561,-500.0,0.00011095,2]
[352186585,1738983041571,-500.0,0.00011095,2]
[352186586,1738983041581,-502.93424298,0.00011095,2]
[352186587,1738983041592,-1356.21,0.00011095,2]
[352186588,1738983041602,-500.73845347,0.00011095,2]
[352186589,1738983041611,-500.0,0.00011095,2]
[352186590,1738983041621,-500.0,0.00011095,2]
[352186591,1738983041631,-500.0,0.00011095,2]
[352186592,1738983041640,-628.81,0.00011095,2]
[352186593,1738983041650,-504.82923912,0.00011095,2]
[352186594,1738983041660,-500.0,0.00011095,2]
[352186595,1738983041671,-500.0,0.00011095,2]
[352186596,1738983041681,-500.0,0.00011095,2]
[352186597,1738983041690,-500.0,0.00011095,2]
[352186598,1738983041699,-508.14298753,0.00011095,2]
[352186599,1738983041709,-502.68920716,0.00011095,2]
[352186600,1738983041719,-704.22,0.00011095,2]
[352186601,1738983041728,-500.0,0.00011095,2]
[352186602,1738983041739,-500.0,0.00011095,2]
[352186603,1738983041749,-336.61235379,0.00011095,2]
[352186604,1738983041759,-500.0,0.00011095,2]
[352186605,1738983041768,-500.0,0.00011095,2]
[352186606,1738983041778,-506.38526224,0.00011095,2]
[352186607,1738983041788,-501.94370888,0.00011095,2]
[352186608,1738983041798,-338.53199913,0.00011095,2]
[352186609,1738983041807,-500.0,0.00011095,2]
[352186610,1738983041817,-505.34376234,0.00011095,2]
[352186611,1738983041827,-2581.93,0.00011095,2]
[352186612,1738983041837,-506.45582172,0.00011095,2]
[352186613,1738983041847,-500.0,0.00011095,2]
[352186614,1738983041857,-605.91,0.00011095,2]
[352186615,1738983041866,-500.0,0.00011095,2]
[352186616,1738983041876,-500.0,0.00011095,2]
[352186617,1738983041885,-500.0,0.00011095,2]
[352186618,1738983041895,-504.26442328,0.00011095,2]
[352186619,1738983041904,-1043.36,0.00011095,2]
[352186620,1738983041914,-502.26483117,0.00011095,2]
[352186621,1738983041925,-1015.05,0.00011095,2]
[352186622,1738983041934,-315.1487334,0.00011095,2]
[352186623,1738983042182,-184.8512666,0.00011095,2]
[352186625,1738983042192,-2154.73,0.00011095,2]
[352186626,1738983042203,-500.0,0.00011095,2]
[352186627,1738983042213,-101.00061803,0.00011095,2]
[352186630,1738983042944,-2544.78,0.00010958,2]
[352186631,1738983042954,-738.89,0.00010959,2]
[352186632,1738983042964,-398.99938197,0.00011095,2]
[352186633,1738983042974,-500.0,0.00011095,2]
[352186634,1738983042983,-500.0,0.00011095,2]
[352186635,1738983042993,-500.0,0.00011095,2]
[352186636,1738983043002,-1349.32,0.00011095,2]
[352186637,1738983043012,-2091.92,0.00011095,2]
[352186638,1738983043035,-504.32544956,0.00011095,2]
[352186639,1738983043044,-500.0,0.00011095,2]
[352186640,1738983043053,-500.0,0.00011095,2]
[352186641,1738983043064,-556.51,0.00011095,2]
[352186642,1738983043073,-477.04297228,0.00011095,2]
[352186643,1738983043082,-151.0,0.00011095,2]
[352186644,1738983043092,-515.85,0.00011095,2]
[352186646,1738983043101,-534.52,0.00011095,2]
[352186648,1738983043109,-502.87330247,0.00011095,2]
[352186651,1738983043118,-165.61039046,0.00011095,2]
[352186655,1738983043130,-667.83960954,0.00011095,2]
[352186656,1738983043139,-944.84,0.00011095,2]
[352186657,1738983043148,-500.0,0.00011095,2]
[352186658,1738983043162,-504.3582505,0.00011095,2]
[352186659,1738983043171,-500.0,0.00011095,2]
[352186660,1738983043181,-500.0,0.00011095,2]
[352186661,1738983043190,-504.18997682,0.00011095,2]
[352186662,1738983043200,-4241.27,0.00011095,2]
[352186663,1738983043209,-503.52056844,0.00011095,2]
[352186664,1738983043218,-500.0,0.00011095,2]
[352186665,1738983043228,-500.0,0.00011095,2]
[352186666,1738983043238,-500.0,0.00011095,2]
[352186667,1738983043247,-362.20841875,0.00011095,2]
[352186668,1738983044008,-500.0,0.00010958,2]
[352186669,1738983044018,-500.0,0.00010958,2]
[352186670,1738983044029,-154.24158125,0.00011095,2]
[352186671,1738983044038,-2528.82723458,0.00011095,2]
[352186677,1738983205198,3000.0,0.00014,30]
[352186678,1738983205663,3000.0,0.0001401,30]
[352186679,1738983206067,3000.0,0.0001402,30]
[352186708,1738984232088,-160.0,9.71e-05,2]
[352186709,1738984232098,-160.0,9.71e-05,2]
[352186710,1738984232108,-160.0,9.71e-05,2]
[352186711,1738984232117,-160.0,9.71e-05,2]
[352186712,1738984232127,-454.6311507,9.937e-05,2]
[352186713,1738984232136,-300.0,0.00010857,2]
[352186714,1738984232145,-191.00442517,0.00010858,2]
[352186715,1738984232154,-1679.02114369,0.00010858,2]
[352186716,1738984232165,-1120.28060767,0.00010858,2]
[352186717,1738984232176,-3255.12384721,0.00010858,2]
[352186718,1738984232195,-31977.7709302,0.00010858,2]
[352186719,1738984232204,-353.91115547,0.00010957,2]
[352186720,1738984232213,-585.58362312,0.00010958,2]
[352186721,1738984232223,-500.70097263,0.00010958,2]
[352186722,1738984232232,-206.10176582,0.00010958,2]
[352186723,1738984232241,-253.63694842,0.00010958,2]
[352186724,1738984232250,-515.15560528,0.00010958,2]
[352186725,1738984232259,-344.95541863,0.00010958,2]
[352186726,1738984232268,-500.0,0.00010958,2]
[352186727,1738984232278,-503.74032056,0.00010958,2]
[352186728,1738984232287,-322.19477127,0.00010958,2]
[352186729,1738984232296,-500.0,0.00010958,2]
[352186730,1738984232305,-500.0,0.00010958,2]
[352186731,1738984232315,-502.16399253,0.00010958,2]
[352186732,1738984232323,-500.0,0.00010958,2]
[352186733,1738984232333,-500.0,0.00010958,2]
[352186734,1738984232342,-500.0,0.00010958,2]
[352186735,1738984232351,-500.0,0.00010958,2]
[352186736,1738984232360,-508.4202854,0.00010958,2]
[352186737,1738984232369,-500.0,0.00010958,2]
[352186738,1738984232378,-500.0,0.00010958,2]
[352186739,1738984232387,-500.0,0.00010958,2]
[352186740,1738984232397,-501.13971128,0.00010958,2]
[352186741,1738984232406,-501.5848858,0.00010958,2]
[352186742,1738984232415,-500.0,0.00010958,2]
[352186743,1738984232424,-500.0,0.00010958,2]
[352186744,1738984232433,-648.23767574,0.00010958,2]
[352186745,1738984232443,-500.0,0.00010958,2]
[352186746,1738984232452,-500.0,0.00010958,2]
[352186747,1738984232462,-500.0,0.00010958,2]
[352186748,1738984232471,-500.0,0.00010958,2]
[352186749,1738984232480,-501.75425105,0.00010958,2]
[352186750,1738984232490,-500.0,0.00010958,2]
[352186751,1738984232500,-500.0,0.00010958,2]
[352186752,1738984232509,-500.0,0.00010958,2]
[352186753,1738984232518,-512.66101251,0.00010958,2]
[352186754,1738984232527,-500.0,0.00010958,2]
[352186755,1738984232536,-500.0,0.00010958,2]
[352186756,1738984232549,-502.54969925,0.00010958,2]
[352186757,1738984232558,-560.2337826,0.00010958,2]
[352186758,1738984232568,-500.0,0.00010958,2]
[352186759,1738984232577,-500.0,0.00010958,2]
[352186760,1738984232586,-501.593771,0.00010958,2]
[352186761,1738984232595,-500.0,0.00010958,2]
[352186762,1738984232604,-500.0,0.00010958,2]
[352186763,1738984232614,-500.0,0.00010958,2]
[352186764,1738984232627,-500.0,0.00010958,2]
[352186765,1738984232637,-500.0,0.00010958,2]
[352186766,1738984232646,-500.0,0.00010958,2]
[352186767,1738984232655,-500.0,0.00010958,2]
[352186768,1738984232664,-500.0,0.00010958,2]
[352186769,1738984232674,-503.98336449,0.00010958,2]
[352186770,1738984232684,-500.0,0.00010958,2]
[352186771,1738984232693,-500.0,0.00010958,2]
[352186772,1738984232702,-500.0,0.00010958,2]
[352186773,1738984232711,-500.0,0.00010958,2]
[352186774,1738984232720,-500.0,0.00010958,2]
[352186775,1738984232729,-501.78231166,0.00010958,2]
[352186776,1738984232739,-52.22732987,0.00010958,2]
[352186777,1738984232753,-449.25209226,0.00010958,2]
[352186778,1738984232762,-319.69298356,0.00010958,2]
[352186804,1738984237935,-180.30701644,0.00010958,2]
[352186805,1738984237945,-500.0,0.00010958,2]
[352186806,1738984237954,-500.0,0.00010958,2]
[352186807,1738984237963,-500.0,0.00010958,2]
[352186808,1738984237973,-500.0,0.00010958,2]
[352186809,1738984237982,-500.0,0.00010958,2]
[352186810,1738984237991,-500.0,0.00010958,2]
[352186811,1738984238000,-500.0,0.00010958,2]
[352186812,1738984238009,-500.0,0.00010958,2]
[352186813,1738984238018,-500.0,0.00010958,2]
[352186814,1738984238027,-503.29393788,0.00010958,2]
[352186815,1738984238036,-500.0,0.00010958,2]
[352186816,1738984238046,-500.0,0.00010958,2]
[352186817,1738984238055,-500.0,0.00010958,2]
[352186818,1738984238063,-91.67513785,0.00010958,2]
[352186819,1738984238076,-80.47280174,0.00010958,2]
[352186820,1738984238085,-333.78494834,0.00010958,2]
[352186823,1738984238105,-166.21505166,0.00010958,2]
[352186826,1738984238114,-501.09278847,0.00010958,2]
[352186829,1738984238124,-500.0,0.00010958,2]
[352186832,1738984238133,-500.0,0.00010958,2]
[352186835,1738984238142,-500.0,0.00010958,2]
[352186838,1738984238151,-500.0,0.00010958,2]
[352186841,1738984238160,-579.79,0.00010958,2]
[352186843,1738984238169,-500.0,0.00010958,2]
[352186845,1738984238178,-512.83333668,0.00010958,2]
[352186847,1738984238187,-297.49293765,0.00010958,2]
[352186848,1738984238197,-500.0,0.00010958,2]
[352186849,1738984238206,-500.0,0.00010958,2]
[352186850,1738984238215,-500.0,0.00010958,2]
[352186851,1738984238224,-500.0,0.00010958,2]
[352186852,1738984238233,-500.0,0.00010958,2]
[352186853,1738984238241,-500.0,0.00010958,2]
[352186854,1738984238251,-500.0,0.00010958,2]
[352186855,1738984238260,-500.0,0.00010958,2]
[352186856,1738984238269,-500.0,0.00010958,2]
[352186857,1738984238278,-500.0,0.00010958,2]
[352186858,1738984238289,-500.81014347,0.00010958,2]
[352186859,1738984238300,-500.64885768,0.00010958,2]
[352186860,1738984238310,-409.18946355,0.00010958,2]
[352186861,1738984238320,-500.0,0.00010958,2]
[352186862,1738984238329,-500.0,0.00010958,2]
[352186863,1738984238339,-500.0,0.00010958,2]
[352186864,1738984238349,-500.0,0.00010958,2]
[352186865,1738984238358,-500.0,0.00010958,2]
[352186866,1738984238368,-500.0,0.00010958,2]
[352186867,1738984238378,-500.0,0.00010958,2]
[352186868,1738984238389,-500.0,0.00010958,2]
[352186869,1738984238398,-382.27043206,0.00010958,2]
[352186870,1738984238408,-500.0,0.00010958,2]
[352186871,1738984238417,-502.49340466,0.00010958,2]
[352186872,1738984238427,-500.0,0.00010958,2]
[352186873,1738984238436,-501.45372425,0.00010958,2]
[352186874,1738984238445,-500.0,0.00010958,2]
[352186875,1738984238454,-500.0,0.00010958,2]
[352186876,1738984238464,-500.0,0.00010958,2]
[352186877,1738984238473,-500.0,0.00010958,2]
[352186878,1738984238483,-531.18828098,0.00010958,2]
[352186879,1738984238492,-500.0,0.00010958,2]
[352186880,1738984238501,-500.0,0.00010958,2]
[352186881,1738984238511,-500.76199603,0.00010958,2]
[352186882,1738984238520,-503.98600084,0.00010958,2]
[352186883,1738984238529,-501.15923238,0.00010958,2]
[352186884,1738984238538,-500.0,0.00010958,2]
[352186885,1738984238549,-500.0,0.00010958,2]
[352186886,1738984238558,-500.0,0.00010958,2]
[352186887,1738984238568,-501.60093864,0.00010958,2]
[352186888,1738984238577,-500.0,0.00010958,2]
[352186889,1738984238587,-500.0,0.00010958,2]
[352186890,1738984238596,-500.0,0.00010958,2]
[352186891,1738984238605,-500.28283846,0.00010958,2]
[352186892,1738984238615,-500.0,0.00010958,2]
[352186893,1738984238627,-361.54748092,0.00010958,2]
[352186894,1738984238637,-502.46208824,0.00010958,2]
[352186895,1738984238647,-500.0,0.00010958,2]
[352186896,1738984238656,-500.0,0.00010958,2]
[352186897,1738984238665,-500.0,0.00010958,2]
[352186898,1738984238675,-501.04806849,0.00010958,2]
[352186899,1738984238685,-500.0,0.00010958,2]
[352186900,1738984238695,-500.56659313,0.00010958,2]
[352186901,1738984238704,-500.0,0.00010958,2]
[352186902,1738984238714,-500.0,0.00010958,2]
[352186903,1738984238724,-300.0,0.00010958,2]
[352186904,1738984238733,-826.65,0.00010958,2]
[352186905,1738984238742,-501.06338174,0.00010958,2]
[352186906,1738984238751,-500.0,0.00010958,2]
[352186907,1738984238760,-500.0,0.00010958,2]
[352186908,1738984238770,-500.0,0.00010958,2]
[352186909,1738984238779,-500.0,0.00010958,2]
[352186910,1738984238788,-500.60980057,0.00010958,2]
[352186911,1738984238798,-1027.62,0.00010958,2]
[352186912,1738984238808,-500.0,0.00010958,2]
[352186913,1738984238819,-500.0,0.00010958,2]
[352186914,1738984238828,-504.14636842,0.00010958,2]
[352186915,1738984238837,-500.0,0.00010958,2]
[352186916,1738984238846,-500.0,0.00010958,2]
[352186917,1738984238856,-500.63750474,0.00010958,2]
[352186918,1738984238866,-500.0,0.00010958,2]
[352186919,1738984238876,-500.0,0.00010958,2]
[352186920,1738984238885,-500.0,0.00010958,2]
[352186921,1738984238895,-500.0,0.00010958,2]
[352186922,1738984238904,-500.0,0.00010958,2]
[352186923,1738984238913,-500.0,0.00010958,2]
[352186924,1738984238923,-501.33522087,0.00010958,2]
[352186925,1738984238932,-500.0,0.00010958,2]
[352186926,1738984238942,-500.0,0.00010958,2]
[352186927,1738984238951,-500.0,0.00010958,2]
[352186928,1738984238961,-500.0,0.00010958,2]
[352186929,1738984238971,-501.94479604,0.00010958,2]
[352186930,1738984238980,-370.29755851,0.00010958,2]
[352186931,1738984238992,-504.07096815,0.00010958,2]
[352186932,1738984239002,-500.0,0.00010958,2]
[352186933,1738984239011,-500.0,0.00010958,2]
[352186934,1738984239021,-500.0,0.00010958,2]
[352186935,1738984239033,-502.03489857,0.00010958,2]
[352186936,1738984239042,-500.0,0.00010958,2]
[352186937,1738984239051,-500.0,0.00010958,2]
[352186938,1738984239060,-500.0,0.00010958,2]
[352186939,1738984239069,-500.0,0.00010958,2]
[352186940,1738984239078,-500.0,0.00010958,2]
[352186941,1738984239088,-500.0,0.00010958,2]
[352186942,1738984239098,-500.0,0.00010958,2]
[352186943,1738984239108,-500.0,0.00010958,2]
[352186944,1738984239117,-437.49324889,0.00010958,2]
[352186945,1738984239127,-500.0,0.00010958,2]
[352186946,1738984239136,-500.0,0.00010958,2]
[352186947,1738984239145,-500.0,0.00010958,2]
[352186948,1738984239155,-500.0,0.00010958,2]
[352186949,1738984239163,-500.0,0.00010958,2]
[352186950,1738984239173,-500.0,0.00010958,2]
[352186951,1738984239182,-500.0,0.00010958,2]
[352186952,1738984239192,-500.0,0.00010958,2]
[352186953,1738984239202,-500.0,0.00010958,2]
[352186954,1738984239212,-598.35,0.00010958,2]
[352186955,1738984239222,-500.0,0.00010958,2]
[352186956,1738984239231,-500.0,0.00010958,2]
[352186957,1738984239243,-500.0,0.00010958,2]
[352186958,1738984239252,-500.0,0.00010958,2]
[352186959,1738984239263,-500.0,0.00010958,2]
[352186960,1738984239274,-500.0,0.00010958,2]
[352186961,1738984239284,-500.0,0.00010958,2]
[352186962,1738984239299,-500.0,0.00010958,2]
[352186963,1738984239310,-500.0,0.00010958,2]
[352186964,1738984239319,-500.0,0.00010958,2]
[352186965,1738984239328,-500.0,0.00010958,2]
[352186966,1738984239338,-500.0,0.00010958,2]
[352186967,1738984239347,-267.4740098,0.00010958,2]
[352186968,1738984239357,-500.0,0.00010958,2]
[352186969,1738984239366,-500.0,0.00010958,2]
[352186970,1738984239376,-500.0,0.00010958,2]
[352186972,1738984239386,-501.87346695,0.00010958,2]
[352186974,1738984239396,-500.0,0.00010958,2]
[352186976,1738984239406,-500.0,0.00010958,2]
[352186978,1738984239415,-500.0,0.00010958,2]
[352186980,1738984239424,-500.0,0.00010958,2]
[352186982,1738984239434,-500.0,0.00010958,2]
[352186983,1738984239443,-500.0,0.00010958,2]
[352186984,1738984239454,-500.0,0.00010958,2]
[352186985,1738984239463,-500.0,0.00010958,2]
[352186986,1738984239472,-554.79330933,0.00010958,2]
[352186987,1738984239482,-500.0,0.00010958,2]
[352186988,1738984239492,-500.0,0.00010958,2]
[352186989,1738984239502,-503.19804725,0.00010958,2]
[352186990,1738984239512,-213.97509323,0.00010958,2]
[352186992,1738984239522,-500.0,0.00010958,2]
[352186994,1738984239532,-500.0,0.00010958,2]
[352186995,1738984239541,-500.0,0.00010958,2]
[352186996,1738984239556,-736.69,0.00010958,2]
[352186997,1738984239566,-500.0,0.00010958,2]
[352186998,1738984239577,-597.18058898,0.00010958,2]
[352186999,1738984239587,-206.32632135,0.00010958,2]
[352187000,1738984239596,-500.0,0.00010958,2]
[352187001,1738984239606,-500.0,0.00010958,2]
[352187002,1738984239615,-500.31047946,0.00010958,2]
[352187003,1738984239625,-500.0,0.00010958,2]
[352187004,1738984239635,-500.0,0.00010958,2]
[352187005,1738984239645,-501.47837161,0.00010958,2]
[352187006,1738984239655,-500.0,0.00010958,2]
[352187007,1738984239664,-500.0,0.00010958,2]
[352187009,1738984239674,-500.0,0.00010958,2]
[352187011,1738984239683,-503.72750539,0.00010958,2]
[352187012,1738984239692,-500.0,0.00010958,2]
[352187014,1738984239702,-500.0,0.00010958,2]
[352187015,1738984239713,-500.0,0.00010958,2]
[352187016,1738984239724,-500.0,0.00010958,2]
[352187018,1738984239733,-500.72600182,0.00010958,2]
[352187020,1738984239744,-500.0,0.00010958,2]
[352187022,1738984239754,-500.0,0.00010958,2]
[352187023,1738984239764,-500.0,0.00010958,2]
[352187025,1738984239774,-500.0,0.00010958,2]
[352187027,1738984239783,-500.0,0.00010958,2]
[352187029,1738984239793,-366.83656642,0.00010958,2]
[352187031,1738984239803,-500.0,0.00010958,2]
[352187033,1738984239812,-500.0,0.00010958,2]
[352187035,1738984239822,-406.06808866,0.00010958,2]
[352187037,1738984239832,-500.0,0.00010958,2]
[352187039,1738984239841,-966.14,0.00010958,2]
[352187041,1738984239851,-506.20845166,0.00010958,2]
[352187043,1738984239860,-500.32287701,0.00010958,2]
[352187045,1738984239870,-500.0,0.00010958,2]
[352187047,1738984239879,-500.0,0.00010958,2]
[352187049,1738984239888,-501.38011532,0.00010958,2]
[352187051,1738984239897,-500.0,0.00010958,2]
[352187053,1738984239906,-501.2561079,0.00010958,2]
[352187055,1738984239915,-364.180945,0.00010958,2]
[352187057,1738984239924,-500.0,0.00010958,2]
[352187059,1738984239934,-500.0,0.00010958,2]
[352187061,1738984239943,-500.0,0.00010958,2]
[352187063,1738984239952,-500.0,0.00010958,2]
[352187064,1738984239961,-500.0,0.00010958,2]
[352187067,1738984239971,-417.56579374,0.00010958,2]
[352187069,1738984239981,-500.0,0.00010958,2]
[352187071,1738984239990,-500.0,0.00010958,2]
[352187073,1738984240000,-500.0,0.00010958,2]
[352187075,1738984240009,-500.0,0.00010958,2]
[352187077,1738984240019,-351.13415322,0.00010958,2]
[352187079,1738984240028,-500.0,0.00010958,2]
[352187081,1738984240037,-500.0,0.00010958,2]
[352187083,1738984240046,-500.0,0.00010958,2]
[352187085,1738984240056,-500.0,0.00010958,2]
[352187087,1738984240064,-500.0,0.00010958,2]
[352187089,1738984240074,-500.0,0.00010958,2]
[352187091,1738984240083,-501.87586055,0.00010958,2]
[352187093,1738984240092,-500.0,0.00010958,2]
[352187095,1738984240102,-1244.41,0.00010958,2]
[352187097,1738984240111,-500.0,0.00010958,2]
[352187099,1738984240120,-502.50574112,0.00010958,2]
[352187101,1738984240130,-500.0,0.00010958,2]
[352187103,1738984240139,-500.0,0.00010958,2]
[352187104,1738984240149,-500.0,0.00010958,2]
[352187106,1738984240158,-500.0,0.00010958,2]
[352187108,1738984240167,-500.0,0.00010958,2]
[352187110,1738984240177,-500.0,0.00010958,2]
[352187112,1738984240187,-500.0,0.00010958,2]
[352187113,1738984240196,-500.75016199,0.00010958,2]
[352187115,1738984240206,-1329.47,0.00010958,2]
[352187117,1738984240215,-500.0,0.00010958,2]
[352187119,1738984240225,-500.0,0.00010958,2]
[352187121,1738984240234,-500.0,0.00010958,2]
[352187123,1738984240244,-500.0,0.00010958,2]
[352187125,1738984240253,-389.21503979,0.00010958,2]
[352187127,1738984240262,-610.8,0.00010958,2]
[352187128,1738984240271,-501.17547327,0.00010958,2]
[352187129,1738984240280,-500.0,0.00010958,2]
[352187130,1738984240288,-500.0,0.00010958,2]
[352187131,1738984240297,-500.0,0.00010958,2]
[352187132,1738984240306,-500.0,0.00010958,2]
[352187133,1738984240315,-500.0,0.00010958,2]
[352187134,1738984240324,-500.0,0.00010958,2]
[352187135,1738984240333,-500.0,0.00010958,2]
[352187136,1738984240342,-501.81853841,0.00010958,2]
[352187137,1738984240350,-500.0,0.00010958,2]
[352187138,1738984240359,-231.00185643,0.00010958,2]
[352187139,1738984240368,-500.0,0.00010958,2]
[352187140,1738984240378,-500.0,0.00010958,2]
[352187141,1738984240387,-500.0,0.00010958,2]
[352187142,1738984240396,-500.0,0.00010958,2]
[352187143,1738984240405,-500.0,0.00010958,2]
[352187144,1738984240414,-3126.46,0.00010958,2]
[352187145,1738984240422,-500.0,0.00010958,2]